fUST/lending_fUST_20260118
["ID","MTS","AMOUNT","RATE_DAILY","PERIOD"]
[402443192,1768678258254,-348.04789676,0.00016986,3]
[402443193,1768678258263,-500.0,0.00016986,3]
[402443194,1768678258274,-282.14565143,0.00016986,3]
[402443195,1768678258283,-706.06,0.00016986,3]
[402443196,1768678258293,-500.0,0.00016986,3]
[402443197,1768678258302,-894.98,0.00016986,3]
[402443198,1768678258311,-1434.6,0.00016986,3]
[402443199,1768678258323,-500.0,0.00016986,3]
[402443200,1768678258332,-1026.57,0.00016986,3]
[402443201,1768678258342,-956.8,0.00016986,3]
[402443202,1768678258352,-500.0,0.00016986,3]
[402443203,1768678258362,-1483.68,0.00016986,3]
[402443204,1768678258371,-275.02958199,0.00016986,3]
[402443205,1768678258380,-500.0,0.00016986,3]
[402443206,1768678258390,-500.0,0.00016986,3]
[402443207,1768678258399,-500.0,0.00016986,3]
[402443208,1768678258409,-1502.97,0.00016986,3]
[402443209,1768678258418,-2978.31,0.00016986,3]
[402443210,1768678258429,-626.72,0.00016986,3]
[402443211,1768678258438,-500.0,0.00016986,3]
[402443212,1768678258448,-500.0,0.00016986,3]
[402443213,1768678258458,-719.11,0.00016986,3]
[402443214,1768678258467,-934.5,0.00016986,3]
[402443215,1768678258477,-500.0,0.00016986,3]
[402443216,1768678258486,-1592.55,0.00016986,3]
[402443217,1768678258495,-500.0,0.00016986,3]
[402443218,1768678258505,-500.0,0.00016986,3]
[402443219,1768678258513,-500.0,0.00016986,3]
[402443220,1768678258522,-648.92,0.00016986,3]
[402443221,1768678258531,-500.0,0.00016986,3]
[402443222,1768678258539,-500.0,0.00016986,3]
[402443223,1768678258546,-500.0,0.00016986,3]
[402443224,1768678258554,-500.0,0.00016986,3]
[402443225,1768678258562,-530.48,0.00016986,3]
[402443226,1768678258569,-500.0,0.00016986,3]
[402443227,1768678258577,-500.0,0.00016986,3]
[402443228,1768678258585,-500.0,0.00016986,3]
[402443229,1768678258592,-500.0,0.00016986,3]
[402443230,1768678258599,-662.9,0.00016986,3]
[402443231,1768678258608,-789.23,0.00016986,3]
[402443232,1768678258615,-500.0,0.00016986,3]
[402443233,1768678258623,-929.04,0.00016986,3]
[402443234,1768678258629,-770.4,0.00016986,3]
[402443235,1768678258638,-500.0,0.00016986,3]
[402443236,1768678258651,-500.0,0.00016986,3]
[402443237,1768678258660,-500.0,0.00016986,3]
[402443238,1768678258669,-1140.57,0.00016986,3]
[402443239,1768678258679,-500.0,0.00016986,3]
[402443240,1768678258690,-719.04,0.00016986,3]
[402443241,1768678258699,-965.44,0.00016986,3]
[402443242,1768678258709,-777.27,0.00016986,3]
[402443243,1768678258721,-500.0,0.00016986,3]
[402443244,1768678258730,-500.0,0.00016986,3]
[402443245,1768678258739,-1216.98,0.00016986,3]
[402443246,1768678258749,-1124.47,0.00016986,3]
[402443247,1768678258759,-500.0,0.00016986,3]
[402443248,1768678258768,-500.0,0.00016986,3]
[402443249,1768678258778,-500.0,0.00016986,3]
[402443250,1768678258787,-500.0,0.00016986,3]
[402443251,1768678258796,-1477.44,0.00016986,3]
[402443252,1768678258806,-500.0,0.00016986,3]
[402443253,1768678258815,-500.0,0.00016986,3]
[402443254,1768678258825,-1254.87,0.00016986,3]
[402443255,1768678258835,-1763.46,0.00016986,3]
[402443256,1768678258844,-1084.1,0.00016986,3]
[402443257,1768678258853,-500.0,0.00016986,3]
[402443258,1768678258863,-500.0,0.00016986,3]
[402443259,1768678258872,-500.0,0.00016986,3]
[402443260,1768678258882,-500.0,0.00016986,3]
[402443261,1768678258891,-1224.33,0.00016986,3]
[402443262,1768678258902,-791.74,0.00016986,3]
[402443263,1768678258911,-11980.17,0.00016986,3]
[402443264,1768678258921,-2126.89,0.00016986,3]
[402443265,1768678258930,-500.0,0.00016986,3]
[402443266,1768678258940,-500.0,0.00016986,3]
[402443267,1768678258950,-1233.77,0.00016986,3]
[402443268,1768678258959,-500.0,0.00016986,2]
[402443269,1768678258969,-500.0,0.00016986,3]
[402443270,1768678258978,-1373.4,0.00016986,3]
[402443271,1768678258987,-500.0,0.00016986,3]
[402443272,1768678258997,-851.12,0.00016986,3]
[402443273,1768678259007,-500.0,0.00016986,2]
[402443274,1768678259016,-500.0,0.00016986,3]
[402443275,1768678259026,-500.0,0.00016986,3]
[402443276,1768678259035,-769.09,0.00016986,3]
[402443277,1768678259044,-845.78,0.00016986,3]
[402443278,1768678259053,-2535.42,0.00016986,3]
[402443279,1768678259063,-500.0,0.00016986,3]
[402443280,1768678259072,-590.2,0.00016986,3]
[402443281,1768678259081,-500.0,0.00016986,3]
[402443282,1768678259090,-500.0,0.00016986,3]
[402443283,1768678259099,-500.0,0.00016986,3]
[402443284,1768678259109,-1156.0,0.00016986,3]
[402443285,1768678259118,-540.28,0.00016986,3]
[402443286,1768678259127,-500.0,0.00016986,3]
[402443287,1768678259136,-500.0,0.00016986,3]
[402443288,1768678259146,-156.77330136,0.00016986,2]
[402443289,1768678259155,-274.90835023,0.00017,2]
[402443290,1768678259164,-81764.19339649,0.0001701,3]
[402443291,1768678259174,-593.0,0.00017029,2]
[402443292,1768678259183,-593.0,0.00017032,2]
[402443293,1768678259192,-593.0,0.00017076,2]
[402443294,1768678259202,-168.0,0.00017101,2]
[402443295,1768678259212,-593.0,0.00017122,2]
[402443296,1768678259222,-4692.55458483,0.00017135,2]
[402443297,1768678259232,-2230.315306,0.00017135,2]
[402443298,1768678259242,-461.67526834,0.00017135,2]
[402443299,1768678259251,-274.0,0.00017178,2]
[402443300,1768678259262,-564.1083671,0.0001726,3]
[402443301,1768678259272,-155.33823981,0.0001726,3]
[402443302,1768678259997,-500.0,0.00016438,3]
[402443303,1768678260007,-500.0,0.00016438,3]
[402443304,1768678260017,-135.23247575,0.00016438,3]
[402443305,1768678260700,-364.76752425,0.00016438,3]
[402443306,1768678260710,-500.0,0.00016438,3]
[402443307,1768678260723,-500.0,0.00016438,3]
[402443308,1768678260731,-500.0,0.00016438,3]
[402443309,1768678260739,-500.0,0.00016438,3]
[402443310,1768678260748,-414.29740699,0.00016438,3]
[402443311,1768678260759,-115.94477637,0.00016438,3]
[402443312,1768678260767,-160.23532795,0.00016438,3]
[402443313,1768678260777,-339.76467205,0.00016438,3]
[402443314,1768678260787,-1041.66666667,0.0001668,2]
[402443315,1768678260796,-151.0,0.00016712,2]
[402443316,1768678260806,-528.91250035,0.00016712,3]
[402443317,1768678260815,-500.0,0.00016712,3]
[402443318,1768678260825,-500.0,0.00016712,3]
[402443319,1768678260834,-367.04574572,0.00016712,3]
[402443320,1768678260846,-132.95425428,0.00016712,3]
[402443321,1768678260856,-500.0,0.00016712,3]
[402443322,1768678260866,-500.0,0.00016712,3]
[402443323,1768678260876,-500.0,0.00016712,3]
[402443324,1768678260885,-395.54,0.00016712,3]
[402443325,1768678260895,-500.0,0.00016712,3]
[402443326,1768678260903,-384.98305638,0.00016986,3]
[402443327,1768678260915,-115.01694362,0.00016986,3]
[402443328,1768678260924,-500.0,0.00016986,3]
[402443329,1768678260934,-1.98729851,0.00016986,3]
[402443330,1768678260948,-414.09177835,0.00016986,3]
[402443331,1768678260961,-83.92092314,0.00016986,3]
[402443332,1768678260970,-500.0,0.00016986,3]
[402443333,1768678260979,-500.0,0.00016986,3]
[402443334,1768678260989,-500.0,0.00016986,3]
[402443335,1768678260999,-500.0,0.00016986,3]
[402443336,1768678261009,-344.66176019,0.0001726,3]
[402443337,1768678261020,-648.17,0.0001726,3]
[402443338,1768678261030,-500.0,0.0001726,3]
[402443339,1768678261039,-704.85,0.0001726,3]
[402443340,1768678261050,-500.0,0.0001726,3]
[402443341,1768678261060,-790.27,0.0001726,3]
[402443342,1768678261070,-500.0,0.0001726,3]
[402443343,1768678261079,-862.74052012,0.0001726,3]
[402443344,1768678261089,-500.0,0.0001726,3]
[402443345,1768678261098,-500.0,0.0001726,3]
[402443346,1768678261108,-575.6,0.0001726,3]
[402443347,1768678261118,-500.0,0.0001726,3]
[402443348,1768678261127,-499.15738149,0.0001726,3]
[402443349,1768678261139,-0.84261851,0.0001726,3]
[402443350,1768678261147,-611.76,0.0001726,3]
[402443351,1768678261156,-500.0,0.0001726,3]
[402443352,1768678261165,-1351.59,0.0001726,3]
[402443353,1768678261175,-500.0,0.0001726,3]
[402443354,1768678261183,-603.67,0.0001726,3]
[402443355,1768678261191,-500.0,0.0001726,3]
[402443356,1768678261200,-500.0,0.0001726,3]
[402443357,1768678261209,-500.0,0.0001726,3]
[402443358,1768678261217,-500.0,0.0001726,3]
[402443359,1768678261226,-500.0,0.0001726,3]
[402443360,1768678261235,-628.18,0.0001726,3]
[402443361,1768678261245,-431.61312093,0.0001726,3]
[402443362,1768678261257,-68.38687907,0.0001726,3]
[402443363,1768678261266,-379.47312093,0.0001726,3]
[402443364,1768678261706,-5000.0,0.00016274,2]
[402443365,1768678261716,-500.0,0.00016438,3]
[402443366,1768678261725,-500.0,0.00016438,3]
[402443367,1768678261733,-500.0,0.00016712,3]
[402443368,1768678261742,-500.0,0.00016712,3]
[402443369,1768678261751,-500.0,0.00016986,3]
[402443370,1768678261760,-500.0,0.00016986,3]
[402443371,1768678261768,-500.0,0.00016986,3]
[402443372,1768678261778,-447.19687907,0.0001726,3]
[402443373,1768678261787,-1074.38,0.0001726,3]
[402443374,1768678261796,-695.94,0.0001726,3]
[402443375,1768678261806,-500.0,0.0001726,3]
[402443376,1768678261815,-609.26,0.0001726,3]
[402443377,1768678261825,-530.47,0.0001726,3]
[402443378,1768678261835,-1000.0,0.0001726,2]
[402443379,1768678261844,-500.0,0.0001726,3]
[402443380,1768678261853,-500.0,0.0001726,3]
[402443381,1768678261863,-500.0,0.0001726,3]
[402443382,1768678261872,-500.0,0.0001726,3]
[402443383,1768678261881,-500.0,0.0001726,3]
[402443384,1768678261891,-578.13,0.0001726,3]
[402443385,1768678261899,-500.0,0.0001726,3]
[402443386,1768678261909,-500.0,0.0001726,3]
[402443387,1768678261919,-500.0,0.0001726,3]
[402443388,1768678261928,-500.0,0.0001726,3]
[402443389,1768678261937,-500.0,0.0001726,3]
[402443390,1768678261945,-500.0,0.0001726,3]
[402443391,1768678261955,-500.0,0.0001726,3]
[402443392,1768678261964,-500.0,0.0001726,3]
[402443393,1768678261974,-533.97,0.0001726,3]
[402443394,1768678261983,-500.0,0.0001726,3]
[402443395,1768678261993,-546.97,0.0001726,3]
[402443396,1768678262002,-915.52,0.0001726,3]
[402443397,1768678262012,-500.0,0.0001726,3]
[402443398,1768678262021,-500.0,0.0001726,3]
[402443399,1768678262030,-500.0,0.0001726,3]
[402443400,1768678262039,-500.0,0.0001726,3]
[402443401,1768678262050,-543.74,0.0001726,3]
[402443402,1768678262058,-178.66111997,0.0001726,3]
[402443403,1768678262071,-321.33888003,0.0001726,3]
[402443404,1768678262080,-1080.02,0.0001726,3]
[402443405,1768678262089,-500.0,0.0001726,3]
[402443406,1768678262098,-500.0,0.0001726,3]
[402443407,1768678262107,-1116.59,0.0001726,3]
[402443408,1768678262116,-530.22,0.0001726,3]
[402443409,1768678262125,-532.00436142,0.0001726,3]
[402443410,1768678262134,-280.86,0.0001726,3]
[402443411,1768678262144,-666.55,0.0001726,3]
[402443412,1768678262153,-500.0,0.0001726,3]
[402443413,1768678262162,-640.69,0.0001726,3]
[402443414,1768678262171,-500.0,0.0001726,3]
[402443415,1768678262180,-500.0,0.0001726,3]
[402443416,1768678262189,-535.81,0.0001726,3]
[402443417,1768678262198,-500.0,0.0001726,3]
[402443418,1768678262206,-803.97,0.0001726,3]
[402443419,1768678262215,-500.0,0.0001726,3]
[402443420,1768678262235,-894.28,0.0001726,3]
[402443421,1768678262245,-500.0,0.0001726,3]
[402443422,1768678262254,-500.0,0.0001726,3]
[402443423,1768678262262,-500.0,0.0001726,3]
[402443424,1768678262271,-500.0,0.0001726,3]
[402443425,1768678262280,-510.34,0.0001726,3]
[402443426,1768678262289,-500.0,0.0001726,3]
[402443427,1768678262298,-999.87,0.0001726,3]
[402443428,1768678262307,-500.0,0.0001726,3]
[402443429,1768678262317,-1093.11,0.0001726,3]
[402443430,1768678262326,-500.0,0.0001726,3]
[402443431,1768678262334,-500.0,0.0001726,3]
[402443432,1768678262344,-500.0,0.0001726,3]
[402443433,1768678262353,-583.06,0.0001726,3]
[402443434,1768678262363,-1503.34,0.0001726,3]
[402443435,1768678262372,-772.35,0.0001726,3]
[402443436,1768678262382,-500.0,0.0001726,3]
[402443437,1768678262391,-500.0,0.0001726,3]
[402443438,1768678262400,-500.0,0.0001726,3]
[402443439,1768678262410,-678.11,0.0001726,3]
[402443440,1768678262419,-1038.1,0.0001726,3]
[402443441,1768678262429,-1066.58,0.0001726,3]
[402443442,1768678262438,-500.0,0.0001726,3]
[402443443,1768678262447,-841.62,0.0001726,3]
[402443444,1768678262456,-500.0,0.0001726,3]
[402443445,1768678262466,-500.0,0.0001726,3]
[402443446,1768678262475,-500.0,0.0001726,3]
[402443447,1768678262486,-86.41047323,0.0001726,3]
[402443450,1768678368506,-5000.0,0.00012197,2]
[402443451,1768678368773,-586.58423717,0.0001232,2]
[402443452,1768678368805,-371.7,0.00012841,2]
[402443453,1768678368837,-307.90431398,0.00012841,2]
[402443454,1768678368866,-500.0,0.00012841,2]
[402443455,1768678368897,-500.0,0.00012841,2]
[402443456,1768678368926,-500.0,0.00012841,2]
[402443457,1768678368957,-181.85869843,0.00012841,2]
[402443458,1768678369162,-8803.93550084,0.00012842,2]
[402443459,1768678369210,-10000.01,0.00012842,2]
[402443460,1768678369309,-10000.01,0.00012842,2]
[402443461,1768678369343,-10000.01,0.00012842,2]
[402443462,1768678369635,-10000.01,0.00012842,2]
[402443463,1768678369750,-10000.01,0.00012842,2]
[402443464,1768678369900,-10000.01,0.00012842,2]
[402443465,1768678370009,-10000.01,0.00012842,2]
[402443466,1768678370136,-10000.01,0.00012842,2]
[402443467,1768678370245,-10000.01,0.00012842,2]
[402443468,1768678370495,-10000.01,0.00012842,2]
[402443469,1768678370607,-10000.01,0.00012842,2]
[402443470,1768678370722,-10000.01,0.00012842,2]
[402443471,1768678374472,-10000.01,0.00012842,2]
[402443472,1768678374646,-10000.01,0.00012842,2]
[402443473,1768678374773,-10000.01,0.00012842,2]
[402443474,1768678374885,-10000.01,0.00012842,2]
[402443475,1768678380431,-5000.0,0.00012713,2]
[402443476,1768678380514,-0.01,0.00012842,2]
[402443477,1768678380656,-10000.01,0.00012842,2]
[402443478,1768678380803,-10000.01,0.00012842,2]
[402443479,1768678380982,-10000.01,0.00012842,2]
[402443480,1768678381086,-10000.01,0.00012842,2]
[402443481,1768678381199,-10000.01,0.00012842,2]
[402443482,1768678381344,-10000.01,0.00012842,2]
[402443483,1768678381480,-10000.01,0.00012842,2]
[402443484,1768678381642,-10000.01,0.00012842,2]
[402443485,1768678381780,-10000.01,0.00012842,2]
[402443486,1768678381925,-10000.01,0.00012842,2]
[402443487,1768678382067,-10000.01,0.00012842,2]
[402443488,1768678382206,-300.0,0.00012841,2]
[402443489,1768678382255,-9400.01,0.00012842,2]
[402443490,1768678382326,-10000.01,0.00012842,2]
[402443501,1768678841526,-5000.0,0.00011324,2]
[402443502,1768678841566,-0.01,0.00011437,2]
[402443503,1768678841746,-1199.99,0.00011437,2]
[402443504,1768678841775,-2600.03,0.00011438,2]
[402443505,1768678841815,-2399.97,0.00011438,2]
[402443506,1768678841917,-300.0,0.00011553,2]
[402443507,1768678841951,-300.0,0.00011553,2]
[402443508,1768678841981,-300.0,0.00011553,2]
[402443509,1768678842011,-186.87318871,0.00011553,2]
[402443510,1768678842039,-2826.26362258,0.00011554,2]
[402443511,1768678842118,-2173.73637742,0.00011554,2]
[402443512,1768678842566,-178.40956527,0.0001173,2]
[402443513,1768678842593,-996.81071655,0.00012028,2]
[402443514,1768678842687,-7649.56943636,0.00012688,2]
[402443515,1768678842702,-10000.01,0.00012688,2]
[402443516,1768678842737,-4460.48186457,0.00012688,2]
[402443517,1768678842778,-393.0,0.00012688,2]
[402443518,1768678842846,-293.04627086,0.00012842,2]
[402443519,1768678842877,-10000.01,0.00012842,2]
[402443520,1768678842950,-10000.01,0.00012842,2]
[402443521,1768678843064,-10000.01,0.00012842,2]
[402443522,1768678843169,-10000.01,0.00012842,2]
[402443523,1768678844450,-10000.01,0.00012842,2]
[402443524,1768678844612,-10000.01,0.00012842,2]
[402443525,1768678847441,-10000.01,0.00012842,2]
[402443526,1768678847543,-10000.01,0.00012842,2]
[402443527,1768678847677,-10000.01,0.00012842,2]
[402443528,1768678847869,-5000.0,0.00012713,2]
[402443529,1768678847911,-0.01,0.00012842,2]
[402443530,1768678848003,-10000.01,0.00012842,2]
[402443531,1768678848144,-10000.01,0.00012842,2]
[402443532,1768678848494,-10000.01,0.00012842,2]
[402443533,1768678848509,-10000.01,0.00012842,2]
[402443534,1768678868528,170.25,7.245e-05,2]
[402443535,1768678868945,191.53,7.503e-05,2]
[402443536,1768678869345,212.81,7.762e-05,2]
[402443537,1768678915394,163.0,7.5e-07,2]
[402443544,1768679305545,-5000.0,0.00011731,2]
[402443545,1768679305775,-4692.2057684,0.00011849,2]
[402443546,1768679305910,-5000.0,0.00011969,2]
[402443547,1768679306037,-179.81044637,0.00012274,2]
[402443548,1768679306066,-419.39,0.000123,2]
[402443549,1768679306101,-188.774,0.00012585,2]
[402443550,1768679306210,-8302.08957046,0.00012842,2]
[402443551,1768679306244,-10000.01,0.00012842,2]
[402443552,1768679306333,-10000.01,0.00012842,2]
[402443554,1768679308345,-10000.01,0.00012842,2]
[402443555,1768679308460,-10000.01,0.00012842,2]
[402443556,1768679337250,245.46,5.46e-05,2]
[402443557,1768679337637,490.93,5.72e-05,2]
[402443558,1768679338052,736.39,5.98e-05,2]
[402443559,1768679338471,981.85,6.24e-05,2]
[402443560,1768679338889,1227.32,6.5e-05,2]
[402443561,1768679339312,1472.78,6.76e-05,2]
[402443562,1768679339809,1718.25,7.02e-05,2]
[402443563,1768679340214,1963.71,7.28e-05,2]
[402443564,1768679340640,1163.32,7.541e-05,2]
[402443565,1768679340667,1045.85,7.541e-05,2]
[402443566,1768679341084,2454.64,7.801e-05,2]
[402443567,1768679413929,164.19,7.079e-05,2]
[402443568,1768679414671,246.29,7.4e-05,2]
[402443569,1768679414866,328.39,7.722e-05,2]
[402443570,1768679415275,410.48,8.044e-05,2]
[402443571,1768679415808,492.58,8.366e-05,2]
[402443572,1768679416196,574.68,8.687e-05,2]
[402443573,1768679420758,-455.70935124,9.009e-05,2]
[402443583,1768679432111,-201.07064876,9.009e-05,2]
[402443584,1768679432121,-738.87,9.331e-05,2]
[402443585,1768679432130,-820.97,9.653e-05,2]
[402443586,1768679432141,-2599.18076353,0.00012586,2]
[402443587,1768679432150,-176.21423744,0.00012638,2]
[402443588,1768679432160,-10584.9850927,0.00012689,2]
[402443589,1768679432169,-5443.54909521,0.00012689,2]
[402443592,1768679438315,-5173.49284909,0.00012689,2]
[402443593,1768679438326,-5000.0,0.00012713,2]
[402443594,1768679438335,-23045.43847281,0.00012742,2]
[402443595,1768679438347,-51364.79825652,0.00012742,2]
[402443596,1768679438386,-6266.55930988,0.00012742,2]
[402443597,1768679438398,-919323.20396079,0.00012742,2]
[402443598,1768679438408,-176.7211808,0.00012908,2]
[402443600,1768679438418,-500.0,0.00013273,2]
[402443602,1768679438428,-500.0,0.00013699,2]
[402443603,1768679438437,-1000.0,0.000138,2]
[402443604,1768679438446,-1000.0,0.000138,2]
[402443605,1768679438455,-1000.0,0.000138,2]
[402443606,1768679438464,-1000.0,0.000138,2]
[402443607,1768679438474,-1000.0,0.000138,2]
[402443608,1768679438483,-1000.0,0.000138,2]
[402443609,1768679438493,-1000.0,0.000138,2]
[402443610,1768679438502,-1000.0,0.000138,2]
[402443612,1768679438512,-1000.0,0.000138,2]
[402443613,1768679438521,-547.485748,0.000138,2]
[402443615,1768679438531,-1000.0,0.00013821,2]
[402443617,1768679438540,-1000.0,0.000139,2]
[402443619,1768679438550,-100000.0,0.00014152,2]
[402443621,1768679438559,-1000.0,0.00014247,2]
[402443623,1768679438569,-2361.8294189,0.00014296,2]
[402443625,1768679438578,-5000.0,0.0001451,2]
[402443627,1768679438588,-207.93280018,0.00014638,2]
[402443628,1768679438597,-526.9953764,0.00014655,2]
[402443629,1768679438606,-1500.0,0.00014795,2]
[402443631,1768679438616,-426.38507924,0.00015094,2]
[402443633,1768679438626,-2004.21199472,0.00015342,2]
[402443635,1768679438635,-2368.9822693,0.00015601,2]
[402443637,1768679438644,-1041.66666667,0.00015734,2]
[402443639,1768679438653,-160.0,0.00015737,2]
[402443641,1768679438663,-13761.0,0.00016,2]
[402443643,1768679438672,-500.0,0.00016161,2]
[402443645,1768679438682,-528.5913931,0.00016251,2]
[402443647,1768679438691,-500.0,0.00016302,2]
[402443649,1768679438701,-161.9913003,0.00016386,2]
[402443651,1768679438711,-157.03592371,0.00016386,2]
[402443653,1768679438720,-500.0,0.00016387,2]
[402443655,1768679438730,-3000.0,0.00016428,2]
[402443657,1768679438739,-155.0,0.00016437,2]
[402443659,1768679438750,-500.0,0.00016438,3]
[402443661,1768679438760,-500.0,0.00016438,3]
[402443663,1768679438770,-500.0,0.00016438,3]
[402443665,1768679438780,-500.0,0.00016438,3]
[402443668,1768679438790,-500.0,0.00016438,3]
[402443670,1768679438800,-500.0,0.00016438,3]
[402443672,1768679438810,-500.0,0.00016438,3]
[402443674,1768679438820,-500.0,0.00016438,3]
[402443676,1768679438830,-340.06096256,0.00016438,3]
[402443678,1768679438839,-500.0,0.00016438,3]
[402443680,1768679438849,-644.00223298,0.00016438,3]
[402443682,1768679438858,-500.0,0.00016438,3]
[402443683,1768679438868,-1139.03,0.00016438,3]
[402443686,1768679438879,-500.0,0.00016438,3]
[402443688,1768679438888,-500.0,0.00016438,3]
[402443689,1768679438898,-500.0,0.00016438,3]
[402443690,1768679438908,-500.0,0.00016438,3]
[402443691,1768679438918,-500.0,0.00016438,3]
[402443692,1768679438928,-500.0,0.00016438,3]
[402443693,1768679438937,-500.0,0.00016438,3]
[402443694,1768679438947,-500.68,0.00016438,3]
[402443695,1768679438956,-500.0,0.00016438,3]
[402443696,1768679438966,-500.0,0.00016438,3]
[402443697,1768679438976,-500.0,0.00016438,3]
[402443698,1768679438985,-500.0,0.00016438,3]
[402443699,1768679438995,-500.0,0.00016438,3]
[402443700,1768679439004,-500.0,0.00016438,3]
[402443701,1768679439015,-891.03,0.00016438,3]
[402443702,1768679439024,-500.0,0.00016438,3]
[402443703,1768679439034,-500.0,0.00016438,3]
[402443704,1768679439044,-500.0,0.00016438,3]
[402443705,1768679439054,-520.45827499,0.00016438,3]
[402443706,1768679439063,-500.0,0.00016438,3]
[402443707,1768679439073,-500.0,0.00016438,3]
[402443708,1768679439083,-500.0,0.00016438,3]
[402443709,1768679439093,-500.0,0.00016438,3]
[402443710,1768679439101,-500.0,0.00016438,3]
[402443711,1768679439111,-500.0,0.00016438,3]
[402443712,1768679439120,-500.0,0.00016438,3]
[402443713,1768679439130,-500.0,0.00016438,3]
[402443714,1768679439141,-500.0,0.00016438,3]
[402443715,1768679439152,-596.44715493,0.00016438,3]
[402443716,1768679439162,-500.0,0.00016438,3]
[402443717,1768679439172,-500.0,0.00016438,3]
[402443718,1768679439182,-617.76833614,0.00016438,3]
[402443719,1768679439192,-500.0,0.00016438,3]
[402443720,1768679439202,-993.81,0.00016438,3]
[402443721,1768679439211,-500.0,0.00016438,3]
[402443722,1768679439221,-500.0,0.00016438,3]
[402443723,1768679439231,-500.0,0.00016438,3]
[402443724,1768679439243,-1347.64,0.00016438,3]
[402443725,1768679439252,-696.42,0.00016438,3]
[402443726,1768679439261,-500.0,0.00016438,3]
[402443727,1768679439270,-633.62,0.00016438,3]
[402443728,1768679439280,-500.0,0.00016438,3]
[402443729,1768679439289,-500.0,0.00016438,3]
[402443730,1768679439299,-645.22,0.00016438,3]
[402443731,1768679439308,-500.0,0.00016438,3]
[402443732,1768679439319,-500.0,0.00016438,3]
[402443733,1768679439328,-500.0,0.00016438,3]
[402443734,1768679439339,-506.33,0.00016438,3]
[402443735,1768679439348,-500.0,0.00016438,3]
[402443736,1768679439358,-500.0,0.00016438,3]
[402443737,1768679439368,-500.0,0.00016438,3]
[402443738,1768679439378,-500.0,0.00016438,3]
[402443739,1768679439387,-500.0,0.00016438,3]
[402443740,1768679439398,-1262.56,0.00016438,3]
[402443741,1768679439407,-500.0,0.00016438,3]
[402443742,1768679439417,-500.0,0.00016438,3]
[402443743,1768679439426,-500.0,0.00016438,3]
[402443744,1768679439436,-500.0,0.00016438,3]
[402443745,1768679439445,-500.0,0.00016438,3]
[402443746,1768679439454,-500.0,0.00016438,3]
[402443747,1768679439464,-500.0,0.00016438,3]
[402443748,1768679439473,-1321.04,0.00016438,3]
[402443749,1768679439483,-500.0,0.00016438,3]
[402443750,1768679439492,-500.0,0.00016438,3]
[402443751,1768679439502,-500.0,0.00016438,3]
[402443752,1768679439511,-682.86,0.00016438,3]
[402443753,1768679439520,-500.0,0.00016438,3]
[402443754,1768679439529,-500.0,0.00016438,3]
[402443755,1768679439539,-637.08,0.00016438,3]
[402443756,1768679439548,-500.0,0.00016438,3]
[402443757,1768679439558,-796.7,0.00016438,3]
[402443758,1768679439567,-500.0,0.00016438,3]
[402443759,1768679439577,-206.61780172,0.00016438,3]
[402443760,1768679439586,-500.0,0.00016438,3]
[402443761,1768679439596,-679.17,0.00016438,3]